Cogmind - Beta 11 @@@ ROGUE MODE // 2022.04.19 @ 11:41:17 Player: Mairon Result: Destroyed by G-34 Mercenary with Small Laser Performance ------------- Evolutions (0) 0 Regions Visited (1) 200 Robots Destroyed (9) 45 Value Destroyed (182) 182 Prototype IDs (0) 0 Alien Tech Used (0) 0 Bonus (0) 0 TOTAL SCORE: 427 Bonus ------- None Cogmind --------- Core Integrity 0/250 Matter 300/300 Energy 100/100 System Corruption 0% Temperature Cool (6) Movement Core (200) Ox3 Location -10/Materials Parts ------- > --- POWER (1) -------- (None) > --- PROPULSION (2) --- (None) > --- UTILITY (2) ------ Medium Storage Unit Targeting Computer > --- WEAPON (2) ------- (None) > --- INVENTORY (10) --- Heat Sink Large Storage Unit Structural Scanner Peak State ------------ > --- POWER ------------ Light Ion Engine > --- PROPULSION ------- Light Treads Light Treads > --- UTILITY ---------- Small Storage Unit Medium Storage Unit > --- WEAPON ----------- EM Pulse Gun Medium Laser > --- INVENTORY -------- Datajack [Rating: 7] Favorites ----------- Power Light Ion Engine Engine Light Ion Engine Propulsion Light Treads Treads Light Treads Utility Small Storage Unit Storage Small Storage Unit Processor Targeting Computer Weapon Medium Laser Energy Gun Medium Laser Special Melee Weapon Datajack Build | -11 -10 ------- Run | Scr Mat Slots Evolved . | . . Power . | . . Propulsion . | . . Utility . | . . Weapon . | . . Parts Attached 13 | 6 7 Power 1 | 1 . Engine 1 | 1 . Core . | . . Reactor . | . . Propulsion 2 | 2 . Treads 2 | 2 . Leg . | . . Wheel . | . . Hover . | . . Flight . | . . Utility 3 | 1 2 Device . | . . Storage 2 | 1 1 Processor 1 | . 1 Hackware . | . . Protection . | . . Artifact . | . . Weapon 7 | 2 5 Energy Gun 4 | 2 2 Energy Cannon . | . . Ballistic Gun . | . . Ballistic Cannon . | . . Launcher . | . . Special Weapon . | . . Impact Weapon . | . . Slashing Weapon . | . . Piercing Weapon . | . . Special Melee Weapon 3 | . 3 Unidentified Prototypes . | . . Parts Lost 6 | . 6 Power 1 | . 1 Propulsion 2 | . 2 Utility . | . . Weapon 3 | . 3 Highest Loss Streak 6 | . 6 To Critical Strikes . | . . Average Slot Usage (%) 83 | . 83 Engine 13 | . 13 Treads 26 | . 26 Storage 15 | . 15 Processor 4 | . 4 Energy Gun 22 | . 22 Naked Turns . | . . Heaviest Build 22 | 12 22 Greatest Support 40 | 40 40 Greatest Overweight (x) 3 | 1 3 Average Overweight (x) . | . . Largest Inventory Capacity 10 | 8 10 Average Capacity 8 | 6 8 Most Carried 4 | . 4 Average Carried 1 | . 1 Final Capacity 10 | 8 10 Final Carried 3 | . 3 Class Distribution -------------------- 100% | Mutant Dominant Class ---------------- Mutant | -10/Materials Resources | -11 -10 ----------- Run | Scr Mat Matter Collected 320 | 168 152 Remotely . | . . Salvage Created 231 | . 231 Parts 14 | . 14 Haulers Intercepted . | . . Recyclers Shooed . | . . Parts Field Recycled . | . . Retrieved Matter . | . . Parts Self-Destructed . | . . Prevented . | . . Kills | -11 -10 ------- Run | Scr Mat Combat Hostiles Destroyed 7 | . 7 Guns 6 | . 6 AOE 1 | . 1 Classes Destroyed 4 | . 4 Worker 1 | . 1 Builder 1 | . 1 Swarmer 3 | . 3 Grunt 4 | . 4 Best Kill Streak 4 | . 4 Combat Bots Only 3 | . 3 Max Kills in Single Turn 1 | . 1 Gunslinging . | . . Exploded 1 | . 1 Melee . | . . Uniques/NPCs Destroyed . | . . Combat | -11 -10 -------- Run | Scr Mat Damage Taken 746 | . 746 Core 254 | . 254 Absorbed by Shields . | . . Core Remaining (%) 100 | 100 . Volleys Fired 25 | . 25 Largest 2 | . 2 Hottest 90 | . 90 Shots Fired 44 | . 44 Gun 44 | . 44 Cannon . | . . Launcher . | . . Special . | . . Kinetic . | . . Thermal 25 | . 25 Explosive . | . . Electromagnetic 19 | . 19 Robot Hit Streak 5 | . 5 Robot Miss Streak 3 | . 3 Penetration Max . | . . Secondary Targets 1 | . 1 Max Gunslinging Chain 1 | . 1 Shots Hit Robots 36 | . 36 Core Hits 12 | . 12 Critical Kills . | . . Critical Parts Destroyed . | . . Critical Strikes . | . . Melee Attacks 8 | . 8 Impact . | . . Slashing . | . . Piercing . | . . Sneak Attacks 7 | . 7 Combat Hostiles . | . . Follow-up Attacks . | . . Damage Inflicted 463 | . 463 Guns 350 | . 350 Cannons . | . . Explosions 113 | . 113 Melee . | . . Ramming . | . . Kinetic . | . . Thermal 299 | . 299 Explosive . | . . Electromagnetic 164 | . 164 Impact . | . . Slashing . | . . Piercing . | . . Highest Corruption . | . . Average Corruption . | . . Corruption Purged . | . . Corruption Blocked . | . . Overload Shots . | . . Overflow Damage 9 | . 9 Projectiles . | . . Explosions 9 | . 9 Melee . | . . Knockbacks . | . . Impact . | . . Kinetic . | . . Secondary . | . . Self-Inflicted Damage . | . . Shots . | . . Rammed . | . . Targets Rammed . | . . Kicked . | . . Crushed . | . . Highest Temperature 294 | . 294 Average Temperature 124 | . 124 Received Heat Transfer 360 | . 360 Effects 2 | . 2 Interference 2 | . 2 Siege Activations . | . . Robots Corrupted . | . . Combat Hostiles . | . . Parts Fried . | . . Impact Corruptions . | . . Robots Melted . | . . Combat Hostiles . | . . Parts Melted 1 | . 1 Heat Transferred 755 | . 755 Parts Sabotaged . | . . Parts Stolen . | . . Parts Stripped . | . . Power Chain Reactions 2 | . 2 Missiles Intercepted . | . . Alert | -11 -10 ------- Run | Scr Mat Peak Influence 289 | . 289 Initial . | . . Average 111 | . 132 Maximum Alert Level 1 | . 1 Low Security (%) 68 | 100 62 Level 1 31 | . 37 Level 2 . | . . Level 3 . | . . Level 4 . | . . Level 5 . | . . High Security . | . . Max Security . | . . Squads Dispatched 2 | . 2 Investigation 2 | . 2 Extermination . | . . Reinforcement . | . . Assault . | . . Garrison . | . . Intercept . | . . Searches Triggered . | . . Construction Impeded . | . . Haulers Reinforced . | . . Active Scanning Responses . | . . Cargo Convoy Interrupts . | . . Stealth | -11 -10 --------- Run | Scr Mat Distress Signals 1 | . 1 Communications Jammed . | . . Distress Signals . | . . Times Spotted 21 | . 21 Peak Tracking Total 7 | . 7 Tactical Retreats 2 | . 2 Traps | -11 -10 ------- Run | Scr Mat Traps Triggered . | . . Indirectly . | . . Trap Hack Attempts . | . . Triggered . | . . Disarmed . | . . Reprogrammed . | . . Reused . | . . Traps Extracted . | . . Installed . | . . Triggered . | . . Machines | -11 -10 ---------- Run | Scr Mat Machines Disabled 1 | . 1 Max in Single Turn 1 | . 1 Machines Sabotaged . | . . Garrisons Compromised . | . . Overloaded Fab Kills . | . . Hacking | -11 -10 --------- Run | Scr Mat Machines Accessed 3 | . 3 Terminals 3 | . 3 Fabricators . | . . Repair Stations . | . . Recycling Units . | . . Scanalyzers . | . . Garrison Access . | . . Total Hacks 23 | . 23 Successful 12 | . 12 Failed 11 | . 11 Catastrophic 1 | . 1 Database Lockouts . | . . Manual 24 | . 24 Terminals 23 | . 23 Fabricators . | . . Repair Stations . | . . Recycling Units . | . . Scanalyzers . | . . Garrison Access . | . . Terminal Hacks 4 | . 4 Robot Analysis 4 | . 4 Fabricator Hacks . | . . Repair Station Hacks . | . . Recycling Unit Hacks . | . . Scanalyzer . | . . Garrison Access Hacks . | . . Unauthorized Hacks 8 | . 8 Terminals 8 | . 8 Track 3 | . 3 Botnet 3 | . 3 Operators 2 | . 2 Fabricators . | . . Repair Stations . | . . Recycling Units . | . . Scanalyzers . | . . Garrison Access . | . . Data Cores Recovered . | . . Used . | . . Hacking Detections 3 | . 3 Full Trace Events 3 | . 3 Feedback Events . | . . Feedback Blocked . | . . Robot Schematics Acquired . | . . Robots Built . | . . Authchips . | . . Time . | . . Total Robot Build Rating . | . . Part Schematics Acquired . | . . Parts Built . | . . Authchips . | . . Time . | . . Total Part Build Rating . | . . Parts Repaired . | . . Time . | . . Parts Recycled . | . . Recycled Matter . | . . Retrieved Matter . | . . Retrieved Components . | . . Parts Scanalyzed . | . . Part Schematics Acquired . | . . Parts Damaged . | . . Bothacking | -11 -10 ------------ Run | Scr Mat Used RIF Installer . | . . Robots Hacked 3 | . 3 Non-combat 3 | . 3 Combat . | . . Robot Hacks Applied 5 | . 5 parse_system 1 | . 1 no_distress 4 | . 4 Relay Couplers Released . | . . Fabnet Peak Effective % . | . . Robots Rewired . | . . Allies Hacked . | . . Hacks Repelled . | . . Allies | -11 -10 -------- Run | Scr Mat Total Allies . | . . Largest Group . | . . Highest-Rated Group . | . . Highest-Rated Ally . | . . Total Orders . | . . Ally Attacks . | . . Total Damage . | . . Kills . | . . Allies Corrupted . | . . Allies Melted . | . . Intel | -11 -10 ------- Run | Scr Mat Robot Analysis Total 4 | . 4 Derelict Logs Recovered . | . . Drone Launches . | . . Drone Recoveries . | . . Exploration | -11 -10 ------------- Run | Scr Mat Turns Passed 420 | 66 354 Spaces Moved 200 | 39 161 Core 9 | 5 4 Treads 191 | 34 157 Legs . | . . Wheels . | . . Hover . | . . Flight . | . . Fastest Speed 50 | 50 160 Average Speed 158 | 147 160 Slowest Speed 200 | 160 200 Overloaded Moves . | . . Propulsion Burnouts . | . . Robots Hopped . | . . Cave-ins Triggered . | . . Exploration Rate (%) 12 | 3 21 Regions Visited 1 Branch Regions . Pre-discovered Areas . | . . Known Exits Taken . | . . Unknown Exits Taken 1 | 1 . Scrap Searched . | . . Spaces Dug . | . . Terrain Destroyed 5 | . 5 Melee . | . . Projectile . | . . AOE 5 | . 5 Terrain Rammed . | . . Walls Destroyed . | . . Machines Disabled . | . . Actions | -11 -10 --------- Run | Scr Mat Total 251 | 45 206 Wait 1 | 1 . Move 199 | 38 161 Hop . | . . Pick Up 4 | . 4 Fast Attach 8 | 6 2 Attach 1 | . 1 Detach . | . . Swap 4 | . 4 Drop 1 | . 1 Fire 25 | . 25 Melee 8 | . 8 Ram . | . . Kick . | . . Crush . | . . Escape Stasis . | . . Rewire . | . . Trap . | . . Miscellaneous . | . . Route ------- -11/Scrapyard -10/Materials History --------- Turn | Location | Event 2 | -11/Scrapyard | Met Revision 17 9 | -11/Scrapyard | Discovered new exit (range 15) 67 | -11/Scrapyard | Entered Materials 300 | -10/Materials | Build established: Mutant 410 | -10/Materials | Core integrity fell below 50% 418 | -10/Materials | Core integrity fell below 20% 421 | -10/Materials | Destroyed by G-34 Mercenary with Small Laser Last Messages --------------- Trojan loaded successfully. Testing... Operator tracking enabled and active. 00324_ ALERT: Suspicious activity at Terminal M003. Dispatching Investigation squad. 00350_ EM Pulse Gun destroyed. 00360_ G-34 Mercenary heat damages Aluminum Leg. 00361_ Aluminum Leg melted. 00361_ G-34 Mercenary destroyed. 00364_ Overheating: System interference. 00364_ Med. Laser temporarily disabled. 00364_ Acquired Heat Sink. 00368_ R-06 Scavenger collects Sml. Storage Unit. 00371_ Med. Laser destroyed. 00393_ Acquired 10 matter. 00397_ Jacked G-34 Mercenary... 00397_ Datajack destroyed. 00405_ Lgt. Treads destroyed. 00406_ Lgt. Ion Engine destroyed. 00413_ Lgt. Treads destroyed. Map ----- +----------------------------------------------------+ | ?????????????????????????????????????????????????? | | ?????????????????????????????????????????????????? | | ?????????????????????????????????????????????????? | | ?????????????????????????????????????????????????? | | ?????????????????????????????????????????????????? | | ?????????????????????????????????????????????????? | | ?????????????????????????????????????????????????? | | ???????????? ????????????????????????????????????? | | ???????????? ????????????????????????????????????? | | ???????????? ????????????????????????????????????? | | ???????????# ????????????????????????????????????? | | ?????o????# ????????????????????????????????????? | | ?????????? ????????????????????????????????????? | | ?????????? ????????????????????????????????????? | | ?????????? ??????????????#???##????????????????? | | ??????????# ????????????? ?????????????????? | | ??????????# #????????????? ?????????????????? | | ??????????# #????????????? ??????????????????? | | ??????????#a#????????????# #??????????????????? | | ??????????# #????????????# #??????????????????? | | ????#+##### #????????????# #??????????????????? | | ????# # #????????????+ #??????????????????? | | ????#"" # #????????????# #??????????????????? | | ????#"T # #????????????# #??????????????????? | | ????#"" #%############## #??????????????????? | | ????# # wg g @ #??????????????????? | | ????# "" =# gg #??????????????????? | | ????# """%+ g #??????????????????? | | ????# """ # g k #??????????????????? | | ????# ## #### #??????????????????? | | ????# ##! !#?## / ##??????????????????? | | ????# ##! !#?##// #######?????????????? | | ????# ###! ! ##?## / # """ #?????????????? | | ????#+#####?######???# = # "T" #?????????????? | | ???? %#????########### + #?????????????? | | ???? #????# # "" # #?????????????? | | ??? #????# # T" #######?????????????? | | ??? #????# """ """ # "" #??????????????????? | | ?? #????# """ """ + #??????????????????? | | ?? #????# """ """ # #??????????????????? | | ? #????# ###### ######?????????????? | | ? ###?????# ! #????# # #?????????????? | | ????????# [ #????# # #?????????????? | | +#+????????###########????# # #?????????????? | | ??????????????????????????# # #?????????????? | | ??????????????????????????# # #?????????????? | | ????????????????########### # #?????????????? | | ????????????????# # #?????????????? | | ????????????????# # #?????????????? | | ????????????????# + #?????????????? | +----------------------------------------------------+ Best States ------------- Heat Dissipation 25 Energy Generation 10 Energy Capacity 125 Matter Stores 300 Matter Capacity 300 Sight Range 16 Terrain Scan Density 10 Evasion (%) 40 Targeting Accuracy 5 Recoil Reduction 2 Item Schematics ----------------- None Robot Schematics ------------------ None Fabricated ------------ Nothing Alien Tech Used ----------------- None Achievements -------------- None Challenges ------------ None Game ------ Seed WeldingTrackerWings Manual? 0 Play Time 00:07:36 Cumulative 7.2 hours Start 2022.04.19 @ 11:33:23 End 2022.04.19 @ 11:41:17 Sessions 1 Manual Loads 0 Difficulty Rogue Special Mode None Game No. 9 Rogue 9 Adventurer 0 Explorer 0 Win Type - Total 0 Types 0/0/0/0/0/0/0/0/0 Lore% 28 Gallery% 17 Achievement% 16 Wizard Run 0 Options --------- ASCII 0 Keyboard 0 Movement Numpad Keybinds 0 Fullscreen 2 Font 24/Smallcaps Map View 76x50 Tactical HUD 1 Map Filters NONE Filters NONE Steam 0 RUN: ba01a1f9-da35-4cc0-82f4-2aba6d6bd56b